bitfinex/quotes_BTCUSD_20230114
["timestamp","ask_amount","ask_price","bid_price","bid_amount"]
[1673684408797,1.51915657,20926.0,20925.0,2.68593234]
[1673684409535,1.51915657,20926.0,20925.0,2.78801417]
[1673684409765,1.51915657,20926.0,20925.0,2.93500443]
[1673684410033,1.51904478,20926.0,20925.0,2.93500443]
[1673684410270,1.51904478,20926.0,20925.0,2.65626872]
[1673684412310,1.51904478,20926.0,20925.0,2.65737313]
[1673684412559,1.51904478,20926.0,20925.0,2.95737313]
[1673684413315,1.51904478,20926.0,20925.0,2.47947613]
[1673684413564,1.51904478,20926.0,20925.0,2.95737313]
[1673684414050,1.51904478,20926.0,20925.0,3.59000075]
[1673684414545,1.51904478,20926.0,20925.0,2.65626872]
[1673684414792,1.51904478,20926.0,20925.0,3.08579927]
[1673684415531,1.51904478,20926.0,20925.0,3.08581935]
[1673684415797,1.51904478,20926.0,20925.0,2.65626872]
[1673684416302,1.51904478,20926.0,20925.0,3.08581987]
[1673684416796,1.51904478,20926.0,20925.0,2.65626872]
[1673684417043,1.51904478,20926.0,20925.0,3.08586204]
[1673684417851,1.51904478,20926.0,20925.0,2.65626872]
[1673684418103,1.51904478,20926.0,20925.0,2.17906703]
[1673684418352,1.51904478,20926.0,20925.0,2.36884206]
[1673684418598,1.51904478,20926.0,20925.0,2.36906096]
[1673684418855,1.51904478,20926.0,20925.0,2.01081248]
[1673684420860,1.51904478,20926.0,20925.0,2.36889409]
[1673684421196,1.51904478,20926.0,20925.0,2.01081248]
[1673684421628,1.51904478,20926.0,20925.0,2.36889378]
[1673684422382,1.51904478,20926.0,20925.0,2.15617578]
[1673684422635,1.51904478,20926.0,20925.0,2.34695284]
[1673684422877,1.51904478,20926.0,20925.0,2.9669361]
[1673684423134,1.51904478,20926.0,20925.0,3.2669361]
[1673684423427,1.51904478,20926.0,20925.0,4.09028967]
[1673684423700,1.51904478,20926.0,20925.0,3.2669361]
[1673684424419,1.51904478,20926.0,20925.0,3.90138726]
[1673684424675,1.51904478,20926.0,20925.0,4.09153221]
[1673684424902,1.51904478,20926.0,20925.0,3.90138726]
[1673684425628,1.51904478,20926.0,20925.0,3.2669361]
[1673684426120,1.51904478,20926.0,20925.0,4.04410818]
[1673684426364,1.51904478,20926.0,20925.0,3.90133932]
[1673684426610,1.51904478,20926.0,20925.0,3.90133075]
[1673684427347,1.51904478,20926.0,20925.0,3.2669361]
[1673684427588,1.43830078,20926.0,20925.0,3.2669361]
[1673684427841,1.43830078,20926.0,20925.0,3.6446361]
[1673684429095,1.42437258,20926.0,20925.0,3.6446361]
[1673684429357,1.42437258,20926.0,20925.0,3.5946361]
[1673684429875,1.42437258,20926.0,20925.0,3.79207989]
[1673684430115,1.42437258,20926.0,20925.0,4.10112685]
[1673684430371,1.42437258,20926.0,20925.0,3.4669361]
[1673684431358,1.43625154,20926.0,20925.0,3.4669361]
[1673684431849,1.43625154,20926.0,20925.0,3.61026867]
[1673684432471,1.43625154,20926.0,20925.0,4.24434956]
[1673684434971,0.93625154,20926.0,20925.0,4.10101699]
[1673684435446,0.93625154,20926.0,20925.0,4.28303357]
[1673684435676,0.93625154,20926.0,20925.0,4.10101699]
[1673684435903,0.93625154,20926.0,20925.0,4.28294917]
[1673684436894,0.93625154,20926.0,20925.0,4.10101699]
[1673684437139,0.93625154,20926.0,20925.0,4.28539527]
[1673684437404,1.11336711,20926.0,20925.0,3.35131438]
[1673684437655,0.93625154,20926.0,20925.0,3.77968948]
[1673684439394,0.93625154,20926.0,20925.0,3.77950852]
[1673684440638,0.93625154,20926.0,20925.0,4.07950852]
[1673684440872,0.93625154,20926.0,20925.0,3.77950852]
[1673684441126,0.93625154,20926.0,20925.0,4.08056864]
[1673684441621,0.93625154,20926.0,20925.0,3.78056864]
[1673684442606,0.93625154,20926.0,20925.0,3.16675514]
[1673684442854,0.93625154,20926.0,20925.0,3.46675514]
[1673684443350,0.94330779,20926.0,20925.0,4.10083603]
[1673684443598,0.94330779,20926.0,20925.0,3.46675514]
[1673684444097,0.94330779,20926.0,20925.0,4.10083603]
[1673684444345,0.94330779,20926.0,20925.0,28.10083603]
[1673684446113,0.94330779,20926.0,20925.0,28.28799468]
[1673684446617,0.94330779,20926.0,20925.0,27.28799468]
[1673684446868,0.94330779,20926.0,20925.0,26.65391379]
[1673684447870,0.66925794,20926.0,20925.0,26.46675514]
[1673684448114,0.66925794,20926.0,20925.0,27.9006334]
[1673684449088,0.66925794,20926.0,20925.0,27.10070568]
[1673684449330,0.66925794,20926.0,20925.0,27.9005599]
[1673684449588,0.66925794,20926.0,20925.0,13.9005599]
[1673684450087,0.66925794,20926.0,20925.0,11.9005599]
[1673684450352,0.66925794,20926.0,20925.0,12.9090599]
[1673684450605,0.66925794,20926.0,20925.0,13.9090599]
[1673684450857,0.66925794,20926.0,20925.0,14.0356599]
[1673684452631,0.005,20926.0,20925.0,15.52646394]
[1673684452874,0.00977585,20927.0,20926.0,0.36847]
[1673684453144,0.00977585,20927.0,20926.0,4.45574302]
[1673684453413,0.00977585,20927.0,20926.0,10.66844802]
[1673684454141,0.00977585,20927.0,20926.0,10.91844802]
[1673684455207,0.00977585,20927.0,20926.0,10.60372796]
[1673684455440,0.01477585,20927.0,20926.0,10.73272796]
[1673684456151,0.01477585,20927.0,20926.0,11.04744802]
[1673684457638,0.01477585,20927.0,20926.0,11.05594802]
[1673684459644,0.01063695,20929.0,20927.0,0.1]
[1673684459899,0.01063695,20929.0,20928.0,2.86701913]
[1673684460159,0.01063695,20929.0,20928.0,3.37969913]
[1673684460402,0.01063695,20929.0,20928.0,8.37969913]
[1673684460648,0.01063695,20929.0,20928.0,9.26315919]
[1673684461641,0.01463695,20929.0,20928.0,9.39715919]
[1673684462125,0.01463695,20929.0,20928.0,8.76369913]
[1673684462357,0.01463695,20929.0,20928.0,9.39715919]
[1673684462851,0.01463695,20929.0,20928.0,8.76369913]
[1673684464100,0.01463695,20929.0,20928.0,9.39715919]
[1673684465097,0.01463695,20929.0,20928.0,8.76369913]
[1673684467781,0.01463695,20929.0,20928.0,9.39715919]
[1673684469312,0.01463695,20929.0,20928.0,8.94197164]
[1673684469560,0.01463695,20929.0,20928.0,8.76369913]
[1673684470306,0.01463695,20929.0,20928.0,9.39004092]
[1673684470553,0.01463695,20929.0,20928.0,8.76369913]
[1673684470799,0.01463695,20929.0,20928.0,9.19269499]
[1673684471051,0.01463695,20929.0,20928.0,8.76369913]
[1673684471556,0.01463695,20929.0,20928.0,9.39715919]
[1673684472046,0.01463695,20929.0,20928.0,9.40565919]
[1673684473302,0.01463695,20929.0,20928.0,8.77219913]
[1673684473545,0.01463695,20929.0,20928.0,9.40565919]
[1673684473811,0.01463695,20929.0,20928.0,8.77219913]
[1673684474285,0.01463695,20929.0,20928.0,9.40565919]
[1673684477540,0.01463695,20929.0,20928.0,8.77219913]
[1673684478029,0.01463695,20929.0,20928.0,9.40565919]
[1673684478279,0.01083562,20931.0,20929.0,0.1]
[1673684478523,0.01083562,20931.0,20930.0,3.29545954]
[1673684478769,0.01083562,20931.0,20930.0,3.80811354]
[1673684479015,0.01083562,20931.0,20930.0,6.80811354]
[1673684479266,0.01083562,20931.0,20930.0,7.05811354]
[1673684480011,0.01483562,20931.0,20930.0,6.6292772]
[1673684480264,0.01483562,20931.0,20930.0,7.05823173]
[1673684480764,0.01483562,20931.0,20930.0,6.6292772]
[1673684481010,0.01083562,20931.0,20930.0,6.6292772]
[1673684481251,0.01483562,20931.0,20930.0,6.7672772]
[1673684482280,0.01483562,20931.0,20930.0,7.40073726]
[1673684482531,0.01483562,20931.0,20930.0,7.40082955]
[1673684482782,0.01483562,20931.0,20930.0,9.40082955]
[1673684483038,0.01483562,20931.0,20930.0,4.40082955]
[1673684483301,0.01483562,20931.0,20930.0,9.40082955]
[1673684483549,0.01483562,20931.0,20930.0,4.40082955]
[1673684483797,0.01483562,20931.0,20930.0,9.40082955]
[1673684484041,0.01483562,20931.0,20930.0,12.40082955]
[1673684484589,0.01483562,20931.0,20930.0,13.20070765]
[1673684485094,0.01112706,20932.0,20931.0,0.39873]
[1673684485358,0.01112706,20932.0,20931.0,3.24342346]
[1673684485609,0.01112706,20932.0,20931.0,3.45633689]
[1673684485843,0.01112706,20932.0,20931.0,8.45633689]
[1673684486338,0.01412706,20932.0,20931.0,8.84533689]
[1673684486824,0.01412706,20932.0,20931.0,10.27876024]
[1673684487093,0.01412706,20932.0,20931.0,8.84533689]
[1673684489606,0.01412706,20932.0,20931.0,9.64506742]
[1673684490099,0.01412706,20932.0,20931.0,8.8453803]
[1673684491846,0.01158047,20933.0,20932.0,0.39873]
[1673684492089,0.13961983,20938.0,20933.0,0.39873]
[1673684492090,0.01181983,20938.0,20933.0,0.39873]
[1673684492344,0.01181983,20938.0,20934.0,4.42728819]
[1673684492595,0.01181983,20938.0,20935.0,1.4332742]
[1673684492845,0.01181983,20938.0,20935.0,2.4235312]
[1673684493101,0.01181983,20938.0,20935.0,17.73825126]
[1673684493354,0.01181983,20938.0,20935.0,17.4235312]
[1673684493595,0.01181983,20938.0,20935.0,17.6735312]
[1673684494608,0.01181983,20938.0,20935.0,17.8115312]
[1673684495832,0.01168018,20936.0,20935.0,17.81179265]
[1673684496361,0.01168018,20936.0,20935.0,18.12651271]
[1673684496610,0.01168018,20936.0,20935.0,17.81179265]
[1673684496856,0.01168018,20936.0,20935.0,18.12651271]
[1673684497857,0.01148018,20936.0,20935.0,18.12651271]
[1673684498349,0.00172277,20940.0,20936.0,0.1]
[1673684498598,0.00172277,20940.0,20939.0,0.49985218]
[1673684498841,0.00172277,20940.0,20939.0,2.4795096]
[1673684499092,0.00172277,20940.0,20939.0,2.47977101]
[1673684499333,0.00172277,20940.0,20939.0,7.47977101]
[1673684499597,0.00172277,20940.0,20939.0,7.68374004]
[1673684499863,0.00172277,20940.0,20939.0,8.87258528]
[1673684500110,0.00172277,20940.0,20939.0,8.65836292]
[1673684500352,0.00172277,20940.0,20939.0,9.15440019]
[1673684500598,0.00172277,20940.0,20939.0,9.76706328]
[1673684501108,0.00172277,20940.0,20939.0,10.08178334]
[1673684501631,0.00172277,20940.0,20939.0,14.51022807]
[1673684502127,0.00172277,20940.0,20939.0,14.08178334]
[1673684502405,0.00172277,20940.0,20939.0,14.50975246]
[1673684502656,0.00172277,20940.0,20939.0,14.33029416]
[1673684503183,0.0153449,20941.0,20940.0,0.1]
[1673684503423,0.4912,20949.0,20940.0,3.17921383]
[1673684503668,0.4912,20949.0,20945.0,0.14252076]
[1673684503908,0.4912,20949.0,20945.0,2.34304107]
[1673684504172,0.4912,20949.0,20945.0,2.36477312]
[1673684504427,0.4912,20949.0,20945.0,3.14054058]
[1673684504683,0.4912,20949.0,20945.0,7.66797419]
[1673684504928,0.4912,20949.0,20945.0,4.0419683]
[1673684505174,0.4912,20949.0,20945.0,12.1809683]
[1673684505420,0.001,20950.0,20946.0,0.1]
[1673684505666,0.001,20950.0,20949.0,0.14223483]
[1673684505911,0.001,20950.0,20949.0,2.55461847]
[1673684506162,0.001,20950.0,20949.0,8.36389252]
[1673684506660,0.001,20950.0,20949.0,9.12724476]
[1673684506904,0.001,20950.0,20949.0,9.26624476]
[1673684507153,0.001,20950.0,20949.0,8.75289252]
[1673684507445,0.001,20950.0,20949.0,6.75289252]
[1673684507698,0.001,20950.0,20949.0,6.95132941]
[1673684507944,0.17046,20950.0,20949.0,5.61654389]
[1673684508201,0.17046,20950.0,20949.0,4.92730671]
[1673684508449,0.001,20950.0,20949.0,0.92730671]
[1673684508691,0.001,20950.0,20949.0,1.92730671]
[1673684508942,0.001,20950.0,20949.0,2.02730671]
[1673684509195,0.001,20950.0,20949.0,5.02730671]
[1673684509474,0.17046,20950.0,20949.0,4.92678589]
[1673684509727,0.53855293,20950.0,20949.0,0.389]
[1673684509976,0.68455236,20950.0,20949.0,0.528]
[1673684510219,1.20351891,20950.0,20949.0,0.528]
[1673684510706,1.20251891,20950.0,20949.0,0.389]
[1673684510956,1.30051891,20950.0,20949.0,0.25]
[1673684511212,1.50051891,20950.0,20949.0,0.25]
[1673684511480,1.39241958,20950.0,20949.0,0.25]
[1673684511721,1.07800823,20950.0,20949.0,0.39]
[1673684511974,0.81344168,20950.0,20949.0,0.25052082]
[1673684512221,0.64398168,20950.0,20949.0,0.272]
[1673684512497,0.001,20950.0,20949.0,0.4491571]
[1673684512745,0.001,20950.0,20949.0,1.11708474]
[1673684512746,0.00054287,20950.0,20949.0,1.11708474]
[1673684513005,0.00154287,20950.0,20949.0,1.41987961]
[1673684513251,0.00154287,20950.0,20949.0,1.38152044]
[1673684513510,0.00354287,20950.0,20949.0,1.52052044]
[1673684513769,0.00054287,20950.0,20949.0,6.50223585]
[1673684514027,0.00254287,20950.0,20949.0,3.17812851]
[1673684514290,0.00254287,20950.0,20949.0,7.62036334]
[1673684514538,0.00254287,20950.0,20949.0,6.62036334]
[1673684514780,0.00054287,20950.0,20949.0,7.69571558]
[1673684515017,0.00254287,20950.0,20949.0,7.83371558]
[1673684515507,0.00254287,20950.0,20949.0,6.62036334]
[1673684515753,0.00254287,20950.0,20949.0,6.32036334]
[1673684516003,0.00234287,20950.0,20949.0,6.32036334]
[1673684516245,0.01386998,20953.0,20950.0,0.1]
[1673684516510,0.01386998,20953.0,20951.0,0.95450569]
[1673684517035,0.01386998,20953.0,20952.0,0.47720169]
[1673684517282,0.01386998,20953.0,20952.0,1.16685169]
[1673684517525,0.01386998,20953.0,20952.0,1.3204716]
[1673684517771,0.01386998,20953.0,20952.0,1.1081026]
[1673684518276,0.01386998,20953.0,20952.0,1.41684969]
[1673684518521,0.01586998,20953.0,20952.0,7.71684969]
[1673684518772,0.01386998,20953.0,20952.0,3.55908452]
[1673684519021,0.01586998,20953.0,20952.0,3.69808452]
[1673684519269,0.01386998,20953.0,20952.0,3.55908452]
[1673684519513,0.00206998,20953.0,20952.0,4.17206763]
[1673684519765,6.998e-05,20953.0,20952.0,4.05679661]
[1673684520005,0.00206998,20953.0,20952.0,4.21043675]
[1673684520264,0.00206998,20953.0,20952.0,4.21095751]
[1673684520523,0.00206998,20953.0,20952.0,12.05098401]
[1673684521033,6.998e-05,20953.0,20952.0,11.91298401]
[1673684521292,6.998e-05,20953.0,20952.0,12.21298401]
[1673684521545,6.998e-05,20953.0,20952.0,12.00056607]
[1673684521796,0.00206998,20953.0,20952.0,12.19415313]
[1673684522054,0.00206998,20953.0,20952.0,11.05101204]
[1673684522294,6.998e-05,20953.0,20952.0,10.62981642]
[1673684522531,0.00206998,20953.0,20952.0,9.90945869]
[1673684522778,0.00206998,20953.0,20952.0,9.90945583]
[1673684523022,6.998e-05,20953.0,20952.0,9.94407645]
[1673684523299,6.998e-05,20953.0,20952.0,9.58947031]
[1673684523572,6.998e-05,20953.0,20952.0,9.56638816]
[1673684523814,0.12756998,20953.0,20952.0,3.87674016]
[1673684524066,0.12756998,20953.0,20952.0,1.01474016]
[1673684524067,0.13056998,20953.0,20952.0,1.01474016]
[1673684524377,0.57638498,20953.0,20952.0,0.25]
[1673684524588,0.57938498,20953.0,20952.0,0.388]
[1673684524838,0.74262168,20953.0,20952.0,0.25]
[1673684525086,0.74462168,20953.0,20952.0,0.389]
[1673684525337,1.04462168,20953.0,20952.0,0.389]
[1673684525586,1.04262168,20953.0,20952.0,0.25]
[1673684525834,0.74462168,20953.0,20952.0,0.39]
[1673684526834,0.74262168,20953.0,20952.0,0.25]
[1673684527072,0.74462168,20953.0,20952.0,0.25]
[1673684527309,0.74262168,20953.0,20952.0,0.25]
[1673684527559,0.74262168,20953.0,20952.0,0.279]
[1673684527799,0.74262168,20953.0,20952.0,0.25]
[1673684528050,0.74462168,20953.0,20952.0,0.352]
[1673684528298,0.74262168,20953.0,20952.0,0.25]
[1673684528541,0.44868498,20953.0,20952.0,0.279]
[1673684528794,0.12756998,20953.0,20952.0,0.279]
[1673684529047,0.12756998,20953.0,20952.0,0.27906]
[1673684529545,0.44868498,20953.0,20952.0,0.27906]
[1673684529788,0.12956998,20953.0,20952.0,0.62106]
[1673684530029,0.44868498,20953.0,20952.0,0.49006]
[1673684530293,0.44868498,20953.0,20952.0,0.51906]
[1673684530537,0.44868498,20953.0,20952.0,0.49006]
[1673684530786,0.75441139,20953.0,20952.0,0.59206]
[1673684531032,1.35364298,20953.0,20952.0,0.48730866]
[1673684531287,1.35364298,20953.0,20952.0,0.51630866]
[1673684532035,1.53591815,20953.0,20952.0,0.51630866]
[1673684532290,1.49639467,20953.0,20952.0,0.51630866]
[1673684532568,1.05364298,20953.0,20952.0,0.51630866]
[1673684532813,1.51979732,20953.0,20952.0,0.51630866]
[1673684533565,1.21979732,20953.0,20952.0,0.51630866]
[1673684535048,1.51979732,20953.0,20952.0,0.51624866]
[1673684535290,1.21979732,20953.0,20952.0,0.51624866]
[1673684536799,1.35364298,20953.0,20952.0,0.51624866]
[1673684537045,1.54245363,20953.0,20952.0,0.51624866]
[1673684537295,1.54245363,20953.0,20950.0,0.01]
[1673684537296,1.53075855,20953.0,20950.0,0.01]
[1673684537563,0.1276,20951.0,20950.0,0.01]
[1673684537813,2.4865243,20951.0,20950.0,0.26]
[1673684538065,2.7950243,20951.0,20950.0,0.26]
[1673684538332,3.26912647,20951.0,20950.0,0.19087]
[1673684538588,3.26912647,20951.0,20946.0,0.00019]
[1673684538838,0.2552,20947.0,20946.0,0.00019]
[1673684539084,0.2552,20947.0,20945.0,0.5044982]
[1673684539085,0.1,20946.0,20945.0,0.45629815]
[1673684539332,1.46991557,20946.0,20945.0,0.45629815]
[1673684539577,1.614615,20946.0,20945.0,0.45629815]
[1673684540075,1.614615,20946.0,20945.0,0.71029815]
[1673684540076,2.05867007,20946.0,20945.0,0.71029815]
[1673684540321,3.01243995,20946.0,20943.0,0.0044982]
[1673684540570,0.8939,20944.0,20943.0,0.0044982]
[1673684540821,1.1926,20944.0,20943.0,0.0044982]
[1673684541069,1.613715,20944.0,20943.0,0.0044982]
[1673684542838,2.46683778,20944.0,20943.0,0.0144982]
[1673684543330,1.83673778,20944.0,20943.0,0.0144982]
[1673684543583,1.83673778,20944.0,20943.0,0.01357309]
[1673684543821,1.26623224,20944.0,20943.0,0.20378111]
[1673684544074,1.50773224,20944.0,20943.0,0.20378111]
[1673684544320,0.35,20944.0,20943.0,0.00305516]
[1673684545049,0.1682913,20944.0,20943.0,0.00305516]
[1673684545310,0.2252913,20944.0,20943.0,0.01405516]
[1673684545552,0.1682913,20944.0,20943.0,0.00305516]
[1673684545794,0.5464063,20944.0,20943.0,0.01305516]
[1673684546042,0.2252913,20944.0,20943.0,0.01305516]
[1673684546317,0.5464063,20944.0,20943.0,0.01305516]
[1673684546575,0.378115,20944.0,20943.0,0.32109047]
[1673684546822,0.057,20944.0,20943.0,0.32109047]
[1673684547325,0.057,20944.0,20943.0,0.17600516]
[1673684547573,0.057,20944.0,20943.0,0.37490366]
[1673684547824,0.057,20944.0,20943.0,0.35782914]
[1673684548320,0.057,20944.0,20943.0,0.34369133]
[1673684548569,0.00019,20947.0,20943.0,0.33369133]
[1673684548831,0.004,20944.0,20943.0,0.65473109]
[1673684549073,0.004,20944.0,20943.0,0.29700516]
[1673684549322,0.004,20944.0,20943.0,0.77449116]
[1673684549863,0.004,20944.0,20943.0,1.22697516]
[1673684550365,0.004,20944.0,20943.0,1.32697516]
[1673684550618,0.004,20944.0,20943.0,1.46861457]
[1673684550873,0.004,20944.0,20943.0,1.36861457]
[1673684551141,0.004,20944.0,20943.0,1.01449116]
[1673684551401,0.004,20944.0,20943.0,0.91852125]
[1673684551672,0.004,20944.0,20943.0,0.27808525]
[1673684551944,0.004,20944.0,20943.0,0.13405516]
[1673684551945,0.35057557,20944.0,20943.0,0.13405516]
[1673684552209,0.34733976,20944.0,20943.0,0.13405516]
[1673684553229,0.64733976,20944.0,20943.0,0.13405516]
[1673684553457,0.57346,20944.0,20943.0,0.13405516]
[1673684553727,0.72782732,20944.0,20943.0,0.13405516]
[1673684553963,0.96661105,20944.0,20943.0,0.13405516]
[1673684554222,0.81224373,20944.0,20943.0,0.13405516]
[1673684554467,1.04648321,20944.0,20943.0,0.13405516]
[1673684554722,0.64248321,20944.0,20943.0,0.00305516]
[1673684554971,0.69448321,20944.0,20943.0,0.00605516]
[1673684555221,0.64248321,20944.0,20943.0,0.00305516]
[1673684555465,0.70648321,20944.0,20943.0,0.01305516]
[1673684555742,0.70648321,20944.0,20943.0,0.00305516]
[1673684555990,0.69448321,20944.0,20943.0,0.00605516]
[1673684556725,1.17194621,20944.0,20943.0,0.00605516]
[1673684556973,1.11994621,20944.0,20943.0,0.00305516]
[1673684557218,1.18394621,20944.0,20943.0,0.01305516]
[1673684557995,0.385115,20944.0,20943.0,0.17600516]
[1673684558251,0.385115,20944.0,20943.0,0.36433696]
[1673684558503,0.064,20944.0,20943.0,0.36433696]
[1673684561040,0.14689312,20947.0,20943.0,0.35433696]
[1673684561041,0.14670312,20947.0,20943.0,0.35433696]
[1673684561298,0.005,20944.0,20943.0,0.67106291]
[1673684561552,0.14670312,20947.0,20943.0,0.35433696]
[1673684561811,0.005,20944.0,20943.0,0.62437052]
[1673684562070,0.6734057,20950.0,20943.0,1.82430723]
[1673684562319,0.6734057,20950.0,20944.0,0.43292596]
[1673684562320,0.1960637,20950.0,20944.0,0.43292596]
[1673684562566,0.1960637,20950.0,20945.0,0.19072595]
[1673684562816,0.1960637,20950.0,20946.0,0.19072595]
[1673684563067,0.1962537,20950.0,20946.0,0.19072595]
[1673684563316,0.19725305,20949.0,20946.0,0.19072595]
[1673684563567,0.15868372,20948.0,20945.0,0.19557364]
[1673684563840,0.17711557,20948.0,20946.0,0.15676141]
[1673684564088,0.67369827,20950.0,20947.0,0.1545239]
[1673684564339,0.19637027,20950.0,20947.0,0.34524985]
[1673684564586,0.19637027,20950.0,20947.0,0.1545239]
[1673684565323,0.19618027,20950.0,20947.0,0.1545239]
[1673684565573,0.321115,20949.0,20947.0,0.1545239]
[1673684565826,0.19618027,20950.0,20947.0,0.1545239]
[1673684566310,0.01434506,20951.0,20947.0,0.1545239]
[1673684566562,0.055,20950.0,20947.0,0.34824985]
[1673684566812,0.055,20950.0,20947.0,0.1575239]
[1673684567825,0.055,20950.0,20947.0,0.17651446]
[1673684568861,0.19028,20952.0,20948.0,0.19224448]
[1673684568862,0.15203399,20952.0,20948.0,0.19224448]
[1673684569116,0.15203399,20952.0,20948.0,0.38297043]
[1673684569367,0.321115,20951.0,20948.0,0.38297043]
[1673684569621,0.321115,20951.0,20948.0,0.19224448]
[1673684570364,0.15203399,20952.0,20948.0,0.19224448]
[1673684570619,0.321115,20951.0,20948.0,0.38297043]
[1673684570892,0.16003399,20952.0,20948.0,0.19624448]
[1673684571137,0.321115,20951.0,20949.0,0.14679698]
[1673684571647,0.16003399,20952.0,20949.0,0.14679698]
[1673684571648,0.15203399,20952.0,20949.0,0.14679698]
[1673684571890,0.008,20951.0,20949.0,0.14679698]
[1673684572140,0.47314899,20952.0,20949.0,0.14679698]
[1673684572388,0.008,20951.0,20949.0,0.15579698]
[1673684572873,0.15203399,20952.0,20950.0,0.16307335]
[1673684573119,0.16003399,20952.0,20950.0,0.16307335]
[1673684573373,0.321115,20951.0,20950.0,0.16307335]
[1673684573629,0.329115,20951.0,20950.0,0.16307335]
[1673684573869,0.329115,20951.0,20950.0,0.00012335]
[1673684574125,0.329115,20951.0,20949.0,0.15579698]
[1673684574359,0.008,20951.0,20950.0,0.00012335]
[1673684574610,0.12789,20954.0,20950.0,0.1908493]
[1673684574856,0.008,20952.0,20951.0,0.19072595]
[1673684575106,0.00019,20954.0,20951.0,0.1]
[1673684575351,0.00019,20954.0,20951.0,0.29072595]
[1673684575620,0.00019,20954.0,20951.0,0.76802695]
[1673684575859,0.00019,20954.0,20951.0,0.577301]
[1673684576115,0.001,20952.0,20951.0,0.14]
[1673684576392,0.19637,20956.0,20951.0,0.18343979]
[1673684576644,0.17366425,20954.0,20951.0,0.51416574]
[1673684576899,0.321115,20953.0,20951.0,0.32343979]
[1673684577152,0.16384941,20953.0,20951.0,0.32343979]
[1673684577398,0.321115,20952.0,20951.0,0.14]
[1673684577644,0.321115,20952.0,20950.0,0.17732944]
[1673684577867,0.16094289,20952.0,20950.0,0.17732944]
[1673684578174,0.321115,20951.0,20950.0,0.17732944]
[1673684578433,0.17462827,20953.0,20950.0,0.17732944]
[1673684578715,0.18813701,20955.0,20951.0,0.14193891]
[1673684578957,0.18813701,20955.0,20952.0,0.19072595]
[1673684579205,0.321115,20954.0,20952.0,0.19072595]
[1673684579451,0.001,20953.0,20952.0,0.477279]
[1673684579791,0.001,20953.0,20952.0,0.95448069]
[1673684579984,0.001,20953.0,20952.0,1.16684669]
[1673684580239,0.001,20953.0,20952.0,1.8365467]
[1673684580491,0.001,20953.0,20952.0,2.05502414]
[1673684580742,0.0004,20956.0,20952.0,2.26747011]
[1673684580993,0.001,20955.0,20953.0,0.47720169]
[1673684581245,0.0004,20956.0,20954.0,1.74401369]
[1673684581503,0.0004,20956.0,20955.0,0.62727175]
[1673684581750,0.01644842,20957.0,20956.0,0.1]
[1673684582001,0.01644842,20957.0,20955.0,0.95439969]
[1673684582268,0.01644842,20957.0,20955.0,0.1600597]
[1673684582771,0.321115,20956.0,20954.0,0.139]
[1673684583024,0.19161328,20956.0,20954.0,0.139]
[1673684583318,0.19161328,20956.0,20953.0,0.19626004]
[1673684583590,0.36872885,20956.0,20953.0,0.19626004]
[1673684583841,0.1275,20955.0,20953.0,0.19626004]
[1673684584066,0.41311557,20955.0,20954.0,0.139]
[1673684584318,0.41311557,20955.0,20952.0,0.16241429]
[1673684584319,0.15913442,20954.0,20952.0,0.16241429]
[1673684584579,0.15913442,20954.0,20953.0,0.139]
[1673684584823,0.48024942,20954.0,20953.0,0.139]
[1673684585149,0.48024942,20954.0,20952.0,0.16241429]
[1673684585390,0.15913442,20954.0,20953.0,0.117]
[1673684585651,0.60724942,20954.0,20953.0,0.117]
[1673684586157,0.60724942,20954.0,20950.0,0.15392677]
[1673684586158,0.61574942,20954.0,20950.0,0.15392677]
[1673684586403,0.0085,20953.0,20950.0,0.15392677]
[1673684586652,0.0085,20953.0,20949.0,0.00019]
[1673684586653,0.321115,20952.0,20949.0,0.00019]
[1673684586902,0.33296061,20952.0,20949.0,0.00019]
[1673684587175,0.28561557,20951.0,20949.0,0.00019]
[1673684587425,0.28561557,20951.0,20947.0,0.019101]
[1673684587426,0.448815,20950.0,20947.0,0.019101]
[1673684587650,0.448815,20950.0,20947.0,0.21206584]
[1673684587651,0.30481557,20950.0,20947.0,0.21206584]
[1673684587941,0.30481557,20950.0,20949.0,0.139]
[1673684588199,0.1277,20950.0,20947.0,0.21206584]
[1673684588695,0.321115,20949.0,20947.0,0.21206584]
[1673684588941,0.1277,20950.0,20947.0,0.21206584]
[1673684589445,0.20009129,20949.0,20947.0,0.21206584]
[1673684589701,0.20009129,20949.0,20947.0,0.35106584]
[1673684589957,0.20009129,20949.0,20947.0,0.158101]
[1673684590206,0.20009129,20949.0,20947.0,0.139]
[1673684590464,0.20009129,20949.0,20946.0,0.18030349]
[1673684590716,0.20009129,20949.0,20945.0,2.14202075]
[1673684590717,0.67433355,20951.0,20948.0,0.14339801]
[1673684590962,0.67433355,20951.0,20948.0,0.33412396]
[1673684591255,0.67414355,20951.0,20948.0,0.33412396]
[1673684591539,0.001,20949.0,20948.0,0.14339801]
[1673684592260,0.001,20949.0,20947.0,3.87851475]
[1673684592517,0.58421685,20953.0,20947.0,3.73851475]
[1673684592770,0.001,20951.0,20948.0,0.66792764]
[1673684593019,0.001,20951.0,20949.0,0.577349]
[1673684593261,0.00019,20953.0,20950.0,0.212397]
[1673684593512,0.00019,20953.0,20950.0,0.19072595]
[1673684593807,0.00019,20953.0,20951.0,0.66792764]
[1673684593808,0.00219,20953.0,20951.0,0.66792764]
[1673684594021,0.00019,20953.0,20952.0,1.74413269]
[1673684594272,0.00019,20953.0,20952.0,1.99058493]
[1673684594767,0.00019,20953.0,20952.0,2.13260568]
[1673684595009,0.01644842,20957.0,20952.0,2.13260568]
[1673684595255,0.01644842,20957.0,20953.0,0.90006439]
[1673684595500,0.01644842,20957.0,20953.0,1.14517764]
[1673684595750,0.01644842,20957.0,20953.0,0.66797595]
[1673684595995,0.01644842,20957.0,20952.0,0.28755073]
[1673684595996,0.19820821,20956.0,20952.0,0.28755073]
[1673684596247,0.50232378,20956.0,20952.0,0.14955073]
[1673684596501,0.321115,20955.0,20953.0,0.138]
[1673684596758,0.01644842,20957.0,20953.0,0.138]
[1673684596759,0.321115,20954.0,20953.0,0.47720169]
[1673684597004,0.01644842,20957.0,20953.0,0.95445769]
[1673684597005,0.002,20956.0,20953.0,0.95445769]
[1673684597254,0.002,20956.0,20954.0,0.212343]
[1673684597503,0.01663842,20957.0,20955.0,0.477213]
[1673684597747,0.01663842,20957.0,20956.0,0.212318]
[1673684597996,0.01663842,20957.0,20956.0,0.1]
[1673684598501,0.01663842,20957.0,20956.0,0.3592543]
[1673684598748,0.01663842,20957.0,20956.0,0.2592543]
[1673684599012,0.01763842,20957.0,20956.0,0.3992543]
[1673684599262,0.01744842,20957.0,20956.0,0.3992543]